fUST/lending_fUST_20250820
["ID","MTS","AMOUNT","RATE_DAILY","PERIOD"]
[380239877,1755622272525,-160.0,0.00023,3]
[380239878,1755622272535,-160.0,0.00023,3]
[380239879,1755622272544,-843.93972674,0.00023,3]
[380239880,1755622272553,-160.0,0.00023,3]
[380239881,1755622272562,-6998.28,0.00023013,2]
[380239882,1755622272573,-966.56,0.00023013,2]
[380239883,1755622272583,-480.0,0.00023013,2]
[380239884,1755622272592,-199.98,0.00023013,2]
[380239885,1755622272602,-665.71,0.00023013,2]
[380239886,1755622272613,-1099.69,0.00023013,2]
[380239887,1755622272622,-4077.21,0.00023013,2]
[380239888,1755622272631,-530.28,0.00023013,2]
[380239889,1755622272640,-568.78632317,0.00023013,2]
[380239890,1755622272649,-989.73,0.00023013,2]
[380239891,1755622272658,-820.05,0.00023013,2]
[380239892,1755622272668,-665.88,0.00023013,2]
[380239893,1755622272678,-1385.41,0.00023013,2]
[380239894,1755622272687,-685.48,0.00023013,2]
[380239895,1755622272696,-1090.94,0.00023013,2]
[380239896,1755622272706,-899.76,0.00023013,2]
[380239897,1755622272715,-1040.67,0.00023013,2]
[380239898,1755622272728,-496.36,0.00023013,2]
[380239899,1755622272737,-748.34,0.00023013,2]
[380239900,1755622272747,-480.0,0.00023013,2]
[380239901,1755622272756,-615.91,0.00023013,2]
[380239902,1755622272765,-973.55,0.00023013,2]
[380239903,1755622272774,-480.0,0.00023013,2]
[380239904,1755622272783,-480.0,0.00023013,2]
[380239905,1755622272793,-480.0,0.00023013,2]
[380239906,1755622272803,-3502.95,0.00023013,2]
[380239907,1755622272812,-2118.85,0.00023013,2]
[380239908,1755622272822,-1200.84,0.00023013,2]
[380239909,1755622272832,-577.5,0.00023013,2]
[380239910,1755622272843,-675.63,0.00023013,2]
[380239911,1755622272852,-535.82,0.00023013,2]
[380239912,1755622272861,-480.0,0.00023013,2]
[380239913,1755622272870,-1462.46,0.00023013,2]
[380239914,1755622272879,-958.15,0.00023013,2]
[380239915,1755622272890,-480.0,0.00023013,2]
[380239916,1755622272901,-684.55,0.00023013,2]
[380239917,1755622272911,-480.0,0.00023013,2]
[380239918,1755622272920,-809.37,0.00023013,2]
[380239919,1755622272930,-822.15,0.00023013,2]
[380239920,1755622272940,-1876.86,0.00023013,2]
[380239921,1755622272949,-485.73,0.00023013,2]
[380239922,1755622272959,-594.43,0.00023013,2]
[380239923,1755622272970,-2779.77,0.00023013,2]
[380239924,1755622272983,-611.1,0.00023013,2]
[380239925,1755622272992,-635.9,0.00023013,2]
[380239926,1755622273001,-480.0,0.00023013,2]
[380239927,1755622273011,-2697.84,0.00023013,2]
[380239928,1755622273020,-2946.82,0.00023013,2]
[380239929,1755622273030,-810.05,0.00023013,2]
[380239930,1755622273040,-1509.61,0.00023013,2]
[380239931,1755622273051,-1082.62,0.00023013,2]
[380239932,1755622273062,-2422.45,0.00023013,2]
[380239933,1755622273071,-516.51,0.00023013,2]
[380239934,1755622273080,-480.0,0.00023013,2]
[380239935,1755622273090,-480.0,0.00023013,2]
[380239936,1755622273099,-480.0,0.00023013,2]
[380239937,1755622273108,-480.0,0.00023013,2]
[380239938,1755622273118,-2620.55,0.00023013,2]
[380239939,1755622273128,-480.0,0.00023013,2]
[380239940,1755622273137,-604.32,0.00023013,2]
[380239941,1755622273147,-846.8,0.00023013,2]
[380239942,1755622273156,-480.0,0.00023013,2]
[380239943,1755622273165,-663.09,0.00023013,2]
[380239944,1755622273175,-519.86,0.00023013,2]
[380239945,1755622273185,-2167.0,0.00023013,2]
[380239946,1755622273194,-705.07,0.00023013,2]
[380239947,1755622273204,-7328.71,0.00023013,2]
[380239948,1755622273214,-538.37,0.00023013,2]
[380239949,1755622273314,-590.33,0.00023013,2]
[380239950,1755622273323,-839.65981581,0.00023013,2]
[380239951,1755622273333,-158.49559511,0.00023014,2]
[380239952,1755622273342,-160.91745435,0.00023014,2]
[380239953,1755622273351,-179.0,0.00023014,7]
[380239954,1755622273362,-876.0,0.00023014,2]
[380239955,1755622273371,-151.0,0.00023025,2]
[380239956,1755622273380,-18502.69577858,0.00023025,2]
[380239957,1755622273389,-217.0,0.00023029,2]
[380239958,1755622273399,-2000.0,0.00023047,2]
[380239959,1755622273409,-1521.94377014,0.00023047,2]
[380239960,1755622273419,-2000.0,0.00023047,2]
[380239961,1755622273430,-344.40837171,0.00023047,2]
[380239962,1755622273440,-886.44215628,0.00023047,2]
[380239963,1755622273449,-548.04642541,0.00023047,2]
[380239964,1755622273459,-1762.72319095,0.00023047,2]
[380239965,1755622273469,-2000.0,0.00023047,2]
[380239966,1755622273483,-2000.0,0.00023047,2]
[380239967,1755622273493,-228.46750799,0.00023047,2]
[380239968,1755622273503,-2000.0,0.00023047,2]
[380239969,1755622273513,-2000.0,0.00023047,2]
[380239970,1755622273522,-675.16317157,0.00023047,2]
[380239971,1755622273531,-2000.0,0.00023047,2]
[380239972,1755622273541,-689.89681487,0.00023047,2]
[380239973,1755622273550,-2000.0,0.00023047,2]
[380239974,1755622273560,-2000.0,0.00023047,2]
[380239975,1755622273569,-1000.0,0.00023047,2]
[380239976,1755622273578,-299.2959534,0.00023054,2]
[380239977,1755622273588,-8629.62995869,0.00023058,7]
[380239978,1755622273597,-150.0,0.0002306,2]
[380239979,1755622273607,-7529.65393196,0.00023062,2]
[380239980,1755622273616,-217.0,0.00023096,2]
[380239981,1755622273626,-158.49559511,0.00023151,2]
[380239982,1755622273635,-160.91745435,0.00023151,2]
[380239983,1755622273645,-217.0,0.00023166,2]
[380239984,1755622273654,-168.55348984,0.00023178,2]
[380239985,1755622273663,-277.3,0.00023184,5]
[380239986,1755622273672,-12685.85563623,0.000232,7]
[380239987,1755622273681,-1010.49,0.000232,7]
[380239988,1755622273690,-375.88899365,0.000232,7]
[380239989,1755622273700,-160.0,0.000232,7]
[380239990,1755622273711,-44805.59,0.000232,2]
[380239991,1755622273720,-215.79176414,0.000232,7]
[380239992,1755622273732,-417.15472785,0.000232,7]
[380239993,1755622273742,-8087.18579842,0.00023201,2]
[380239994,1755622273752,-760.0,0.00023206,2]
[380239995,1755622273761,-1001.20325692,0.0002323,2]
[380239996,1755622273771,-3500.0,0.0002326,2]
[380239997,1755622273781,-3500.0,0.0002326,2]
[380239998,1755622273790,-3500.0,0.0002326,2]
[380239999,1755622273800,-6998.28,0.00023287,2]
[380240000,1755622273809,-966.56,0.00023287,2]
[380240001,1755622273819,-480.0,0.00023287,2]
[380240002,1755622273828,-665.71,0.00023287,2]
[380240003,1755622273837,-1099.69,0.00023287,2]
[380240004,1755622273847,-4077.21,0.00023287,2]
[380240005,1755622273856,-530.28,0.00023287,2]
[380240006,1755622273865,-989.73,0.00023287,2]
[380240007,1755622273875,-820.05,0.00023287,2]
[380240008,1755622273884,-665.88,0.00023287,2]
[380240009,1755622273894,-1385.41,0.00023287,2]
[380240010,1755622273903,-685.48,0.00023287,2]
[380240011,1755622273912,-1090.94,0.00023287,2]
[380240012,1755622273922,-899.76,0.00023287,2]
[380240013,1755622273932,-1040.67,0.00023287,2]
[380240014,1755622273942,-496.36,0.00023287,2]
[380240015,1755622273951,-748.34,0.00023287,2]
[380240016,1755622273962,-480.0,0.00023287,2]
[380240017,1755622273972,-615.91,0.00023287,2]
[380240018,1755622273986,-550.16,0.00023287,2]
[380240019,1755622273995,-973.55,0.00023287,2]
[380240020,1755622274005,-480.0,0.00023287,2]
[380240021,1755622274014,-480.0,0.00023287,2]
[380240022,1755622274023,-3502.95,0.00023287,2]
[380240023,1755622274034,-2118.85,0.00023287,2]
[380240024,1755622274044,-1200.84,0.00023287,2]
[380240025,1755622274054,-577.5,0.00023287,2]
[380240026,1755622274063,-675.63,0.00023287,2]
[380240027,1755622274072,-535.82,0.00023287,2]
[380240028,1755622274081,-480.0,0.00023287,2]
[380240029,1755622274091,-1462.46,0.00023287,2]
[380240030,1755622274100,-958.15,0.00023287,2]
[380240031,1755622274112,-480.0,0.00023287,2]
[380240032,1755622274123,-684.55,0.00023287,2]
[380240033,1755622274132,-480.0,0.00023287,2]
[380240034,1755622274141,-809.37,0.00023287,2]
[380240035,1755622274151,-822.15,0.00023287,2]
[380240036,1755622274160,-1876.86,0.00023287,2]
[380240037,1755622274170,-485.73,0.00023287,2]
[380240038,1755622274180,-594.43,0.00023287,2]
[380240039,1755622274189,-2779.77,0.00023287,2]
[380240040,1755622274198,-611.1,0.00023287,2]
[380240041,1755622274208,-635.9,0.00023287,2]
[380240042,1755622274217,-480.0,0.00023287,2]
[380240043,1755622274229,-2697.84,0.00023287,2]
[380240044,1755622274238,-2946.82,0.00023287,2]
[380240045,1755622274248,-810.05,0.00023287,2]
[380240046,1755622274257,-1509.61,0.00023287,2]
[380240047,1755622274266,-1082.62,0.00023287,2]
[380240048,1755622274275,-2422.45,0.00023287,2]
[380240049,1755622274285,-516.51,0.00023287,2]
[380240050,1755622274295,-480.0,0.00023287,2]
[380240051,1755622274305,-480.0,0.00023287,2]
[380240052,1755622274313,-480.0,0.00023287,2]
[380240053,1755622274322,-480.0,0.00023287,2]
[380240054,1755622274331,-2620.55,0.00023287,2]
[380240055,1755622274341,-572.1725193,0.00023287,2]
[380240056,1755622274351,-604.32,0.00023287,2]
[380240057,1755622274360,-846.8,0.00023287,2]
[380240058,1755622274369,-480.0,0.00023287,2]
[380240059,1755622274378,-663.09,0.00023287,2]
[380240060,1755622274387,-519.86,0.00023287,2]
[380240061,1755622274396,-2167.0,0.00023287,2]
[380240062,1755622274406,-705.07,0.00023287,2]
[380240063,1755622274415,-7328.71,0.00023287,2]
[380240064,1755622274425,-538.37,0.00023287,2]
[380240065,1755622274434,-590.33,0.00023287,2]
[380240066,1755622274443,-158.49559511,0.00023288,2]
[380240067,1755622274452,-160.91745435,0.00023288,2]
[380240068,1755622274462,-441.223598,0.00023288,2]
[380240069,1755622274472,-600.0,0.00023288,2]
[380240070,1755622274486,-876.0,0.00023288,2]
[380240071,1755622274496,-217.0,0.00023292,2]
[380240072,1755622274515,-155.238108,0.00023312,3]
[380240073,1755622274525,-155.238108,0.00023329,2]
[380240074,1755622274534,-217.0,0.00023392,2]
[380240075,1755622274544,-5361.73,0.000234,7]
[380240076,1755622274553,-1026.200719,0.000234,2]
[380240077,1755622274564,-217.0,0.00023404,2]
[380240078,1755622274573,-158.49559511,0.00023425,2]
[380240079,1755622274582,-160.91745435,0.00023425,2]
[380240080,1755622274592,-168.55348984,0.00023479,2]
[380240081,1755622274603,-217.0,0.00023496,2]
[380240082,1755622274613,-408.58647314,0.000235,2]
[380240083,1755622274623,-2500.0,0.00023508,2]
[380240084,1755622274633,-676.50799018,0.00023537,2]
[380240085,1755622274643,-6998.28,0.00023561,2]
[380240086,1755622274652,-966.56,0.00023561,2]
[380240087,1755622274662,-279.0890811,0.00023561,2]
[380240088,1755622274670,-665.71,0.00023561,2]
[380240089,1755622274678,-1099.69,0.00023561,2]
[380240090,1755622274688,-4077.21,0.00023561,2]
[380240091,1755622274697,-530.28,0.00023561,2]
[380240092,1755622274706,-989.73,0.00023561,2]
[380240093,1755622274716,-820.05,0.00023561,2]
[380240094,1755622274729,-665.88,0.00023561,2]
[380240095,1755622274739,-200.0,0.00023561,2]
[380240096,1755622274749,-200.0,0.00023561,2]
[380240097,1755622274759,-200.0,0.00023561,2]
[380240098,1755622274768,-200.0,0.00023561,2]
[380240099,1755622274777,-200.0,0.00023561,2]
[380240100,1755622274786,-200.0,0.00023561,2]
[380240101,1755622274796,-200.0,0.00023561,2]
[380240102,1755622274805,-258.87277132,0.00023561,2]
[380240103,1755622274815,-1385.41,0.00023561,2]
[380240104,1755622274824,-685.48,0.00023561,2]
[380240105,1755622274910,-1090.94,0.00023561,2]
[380240106,1755622274928,-899.76,0.00023561,2]
[380240107,1755622274939,-1040.67,0.00023561,2]
[380240108,1755622274950,-496.36,0.00023561,2]
[380240109,1755622274960,-748.34,0.00023561,2]
[380240110,1755622274971,-480.0,0.00023561,2]
[380240111,1755622274983,-615.91,0.00023561,2]
[380240112,1755622274993,-973.55,0.00023561,2]
[380240113,1755622275003,-480.0,0.00023561,2]
[380240114,1755622275012,-480.0,0.00023561,2]
[380240115,1755622275021,-3502.95,0.00023561,2]
[380240116,1755622275031,-2118.85,0.00023561,2]
[380240117,1755622275042,-1200.84,0.00023561,2]
[380240118,1755622275051,-577.5,0.00023561,2]
[380240119,1755622275061,-675.63,0.00023561,2]
[380240120,1755622275070,-535.82,0.00023561,2]
[380240121,1755622275079,-480.0,0.00023561,2]
[380240122,1755622275090,-1462.46,0.00023561,2]
[380240123,1755622275099,-958.15,0.00023561,2]
[380240124,1755622275109,-560.6,0.00023561,2]
[380240125,1755622275120,-684.55,0.00023561,2]
[380240126,1755622275130,-480.0,0.00023561,2]
[380240127,1755622275140,-809.37,0.00023561,2]
[380240128,1755622275150,-822.15,0.00023561,2]
[380240129,1755622275159,-1876.86,0.00023561,2]
[380240130,1755622275169,-485.73,0.00023561,2]
[380240131,1755622275178,-594.43,0.00023561,2]
[380240132,1755622275187,-2779.77,0.00023561,2]
[380240133,1755622275197,-611.1,0.00023561,2]
[380240134,1755622275206,-635.9,0.00023561,2]
[380240135,1755622275215,-480.0,0.00023561,2]
[380240136,1755622275225,-2697.84,0.00023561,2]
[380240137,1755622275237,-2946.82,0.00023561,2]
[380240138,1755622275247,-810.05,0.00023561,2]
[380240139,1755622275256,-1509.61,0.00023561,2]
[380240140,1755622275265,-1082.62,0.00023561,2]
[380240141,1755622275275,-2422.45,0.00023561,2]
[380240142,1755622275285,-516.51,0.00023561,2]
[380240143,1755622275294,-480.0,0.00023561,2]
[380240144,1755622275304,-480.0,0.00023561,2]
[380240145,1755622275313,-480.0,0.00023561,2]
[380240146,1755622275322,-480.0,0.00023561,2]
[380240147,1755622275331,-2620.55,0.00023561,2]
[380240148,1755622275340,-604.32,0.00023561,2]
[380240149,1755622275350,-846.8,0.00023561,2]
[380240150,1755622275359,-536.6279823,0.00023561,2]
[380240151,1755622275368,-663.09,0.00023561,2]
[380240152,1755622275378,-519.86,0.00023561,2]
[380240153,1755622275387,-2167.0,0.00023561,2]
[380240154,1755622275396,-705.07,0.00023561,2]
[380240155,1755622275405,-7328.71,0.00023561,2]
[380240156,1755622275415,-538.37,0.00023561,2]
[380240157,1755622275424,-590.33,0.00023561,2]
[380240158,1755622275433,-158.49559511,0.00023562,2]
[380240159,1755622275442,-160.91745435,0.00023562,2]
[380240160,1755622275452,-876.0,0.00023562,2]
[380240161,1755622275461,-1001.21322098,0.00023595,2]
[380240162,1755622275470,-2500.0,0.00023595,2]
[380240163,1755622275482,-2500.0,0.00023595,2]
[380240164,1755622275491,-2500.0,0.00023595,2]
[380240165,1755622275502,-414.74784878,0.00023595,2]
[380240166,1755622275510,-1508.92533935,0.00023595,2]
[380240167,1755622275520,-2020.03551996,0.00023595,2]
[380240168,1755622275529,-2500.0,0.00023595,2]
[380240169,1755622275539,-2500.0,0.00023595,2]
[380240170,1755622275549,-13123.1104983,0.000236,7]
[380240171,1755622275724,-1320.3595017,0.000236,7]
[380240172,1755622275739,-300.0,0.00023608,2]
[380240173,1755622275748,-8087.18579842,0.00023614,2]
[380240174,1755622275757,-864.0,0.00023668,20]
[380240175,1755622275766,-168.0,0.00023689,2]
[380240176,1755622275775,-158.49559511,0.00023699,2]
[380240177,1755622275784,-160.91745435,0.00023699,2]
[380240178,1755622275793,-1117.1946432,0.000237,30]
[380240179,1755622275803,-784.14687602,0.00023729,2]
[380240180,1755622275812,-155.238108,0.0002375,3]
[380240181,1755622275821,-860.0,0.00023754,2]
[380240182,1755622275830,-2670.61,0.00023756,2]
[380240183,1755622275839,-784.14687602,0.00023799,2]
[380240184,1755622275849,-168.0,0.00023801,2]
[380240185,1755622275859,-4000.0,0.00023808,2]
[380240186,1755622275868,-4000.0,0.00023808,2]
[380240187,1755622275878,-4000.0,0.00023808,2]
[380240188,1755622275887,-1400.0,0.00023825,2]
[380240189,1755622275897,-217.0,0.00023825,2]
[380240190,1755622275906,-6998.28,0.00023835,2]
[380240191,1755622275916,-966.56,0.00023835,2]
[380240192,1755622275925,-665.71,0.00023835,2]
[380240193,1755622275935,-1099.69,0.00023835,2]
[380240194,1755622275944,-4077.21,0.00023835,2]
[380240195,1755622275953,-530.28,0.00023835,2]
[380240196,1755622275964,-989.73,0.00023835,2]
[380240197,1755622275975,-820.05,0.00023835,2]
[380240198,1755622275988,-665.88,0.00023835,2]
[380240199,1755622275997,-1385.41,0.00023835,2]
[380240200,1755622276007,-685.48,0.00023835,2]
[380240201,1755622276015,-1090.94,0.00023835,2]
[380240202,1755622276024,-899.76,0.00023835,2]
[380240203,1755622276033,-1040.67,0.00023835,2]
[380240204,1755622276044,-496.36,0.00023835,2]
[380240205,1755622276055,-748.34,0.00023835,2]
[380240206,1755622276064,-480.0,0.00023835,2]
[380240207,1755622276073,-615.91,0.00023835,2]
[380240208,1755622276082,-973.55,0.00023835,2]
[380240209,1755622276091,-480.0,0.00023835,2]
[380240210,1755622276101,-480.0,0.00023835,2]
[380240211,1755622276110,-3502.95,0.00023835,2]
[380240212,1755622276119,-2118.85,0.00023835,2]
[380240213,1755622276129,-1200.84,0.00023835,2]
[380240214,1755622276138,-577.5,0.00023835,2]
[380240215,1755622276147,-675.63,0.00023835,2]
[380240216,1755622276156,-535.82,0.00023835,2]
[380240217,1755622276165,-480.0,0.00023835,2]
[380240218,1755622276174,-1462.46,0.00023835,2]
[380240219,1755622276183,-958.15,0.00023835,2]
[380240220,1755622276192,-684.55,0.00023835,2]
[380240221,1755622276201,-480.0,0.00023835,2]
[380240222,1755622276210,-809.37,0.00023835,2]
[380240223,1755622276219,-822.15,0.00023835,2]
[380240224,1755622276315,-1876.86,0.00023835,2]
[380240225,1755622276324,-485.73,0.00023835,2]
[380240226,1755622276334,-594.43,0.00023835,2]
[380240227,1755622276343,-2779.77,0.00023835,2]
[380240228,1755622276352,-611.1,0.00023835,2]
[380240229,1755622276361,-635.9,0.00023835,2]
[380240230,1755622276370,-480.0,0.00023835,2]
[380240231,1755622276379,-2697.84,0.00023835,2]
[380240232,1755622276388,-2946.82,0.00023835,2]
[380240233,1755622276397,-810.05,0.00023835,2]
[380240234,1755622276407,-1509.61,0.00023835,2]
[380240235,1755622276416,-1082.62,0.00023835,2]
[380240236,1755622276425,-2422.45,0.00023835,2]
[380240237,1755622276434,-516.51,0.00023835,2]
[380240238,1755622276443,-590.79899274,0.00023835,2]
[380240239,1755622276453,-480.0,0.00023835,2]
[380240240,1755622276462,-224.41562818,0.00023835,2]
[380240241,1755622276471,-2620.55,0.00023835,2]
[380240242,1755622276481,-604.32,0.00023835,2]
[380240243,1755622276491,-846.8,0.00023835,2]
[380240244,1755622276500,-663.09,0.00023835,2]
[380240245,1755622276510,-519.86,0.00023835,2]
[380240246,1755622276519,-2167.0,0.00023835,2]
[380240247,1755622276528,-705.07,0.00023835,2]
[380240248,1755622276537,-7328.71,0.00023835,2]
[380240249,1755622276547,-538.37,0.00023835,2]
[380240250,1755622276556,-590.33,0.00023835,2]
[380240251,1755622276566,-158.49559511,0.00023836,2]
[380240252,1755622276575,-160.91745435,0.00023836,2]
[380240253,1755622276584,-876.0,0.00023836,2]
[380240254,1755622276593,-277.3,0.00023836,5]
[380240255,1755622276602,-168.0,0.00023846,2]
[380240256,1755622276611,-7529.65393196,0.00023852,2]
[380240257,1755622276620,-168.0,0.00023871,2]
[380240258,1755622276629,-1000.0,0.000239,2]
[380240259,1755622276638,-1868.70369201,0.000239,2]
[380240260,1755622276647,-158.49559511,0.00023973,2]
[380240261,1755622276656,-160.91745435,0.00023973,2]
[380240262,1755622276665,-760.06404617,0.00023973,2]
[380240263,1755622276674,-217.0,0.00023973,2]
[380240264,1755622276683,-10190.29107139,0.00024,2]
[380240265,1755622276692,-160.0,0.00024,7]
[380240266,1755622276701,-160.0,0.00024,7]
[380240267,1755622276710,-12685.85563623,0.00024,7]
[380240268,1755622276719,-232.21311493,0.00024,7]
[380240269,1755622276732,-232.21311493,0.00024,10]
[380240270,1755622276741,-232.21311493,0.00024,7]
[380240271,1755622276750,-160.0,0.00024,7]
[380240272,1755622276759,-160.0,0.00024,10]
[380240273,1755622276768,-160.0,0.00024,7]
[380240274,1755622276777,-216.8835046,0.00024,7]
[380240275,1755622276786,-375.88899365,0.00024,7]
[380240276,1755622276795,-216.8835046,0.00024,10]
[380240277,1755622276805,-216.8835046,0.00024,7]
[380240278,1755622276814,-160.0,0.00024,7]
[380240279,1755622276824,-160.0,0.00024,10]
[380240280,1755622276833,-160.0,0.00024,7]
[380240281,1755622276843,-160.0,0.00024,7]
[380240282,1755622276852,-160.0,0.00024,10]
[380240283,1755622276862,-843.93972674,0.00024,7]
[380240284,1755622276871,-843.93972674,0.00024,10]
[380240285,1755622276881,-843.93972674,0.00024,7]
[380240286,1755622276890,-215.79176414,0.00024,7]
[380240287,1755622276899,-160.0,0.00024,7]
[380240288,1755622276908,-160.0,0.00024,10]
[380240289,1755622276918,-417.15472785,0.00024,7]
[380240290,1755622276927,-8087.18579842,0.00024027,2]
[380240291,1755622276945,-353.39902139,0.0002405,77]
[380240292,1755622276963,-3000.0,0.00024056,2]
[380240293,1755622276981,-6998.28,0.00024109,2]
[380240294,1755622277000,-966.56,0.00024109,2]
[380240295,1755622277018,-665.71,0.00024109,2]
[380240296,1755622277036,-1099.69,0.00024109,2]
[380240297,1755622277055,-4077.21,0.00024109,2]
[380240298,1755622277069,-530.28,0.00024109,2]
[380240299,1755622277086,-989.73,0.00024109,2]
[380240300,1755622277105,-820.05,0.00024109,2]
[380240301,1755622277126,-665.88,0.00024109,2]
[380240302,1755622277140,-1385.41,0.00024109,2]
[380240303,1755622277158,-685.48,0.00024109,2]
[380240304,1755622277173,-1090.94,0.00024109,2]
[380240305,1755622277190,-899.76,0.00024109,2]
[380240306,1755622277203,-1040.67,0.00024109,2]
[380240307,1755622277218,-496.36,0.00024109,2]
[380240308,1755622277236,-748.34,0.00024109,2]
[380240309,1755622277250,-287.20984197,0.00024109,2]
[380240310,1755622277265,-615.91,0.00024109,2]
[380240311,1755622277281,-973.55,0.00024109,2]
[380240312,1755622277296,-480.0,0.00024109,2]
[380240313,1755622277311,-480.0,0.00024109,2]
[380240314,1755622277325,-3502.95,0.00024109,2]
[380240315,1755622277341,-2118.85,0.00024109,2]
[380240316,1755622277356,-1200.84,0.00024109,2]
[380240317,1755622277370,-577.5,0.00024109,2]
[380240318,1755622277382,-675.63,0.00024109,2]
[380240319,1755622277392,-535.82,0.00024109,2]
[380240320,1755622277402,-480.0,0.00024109,2]
[380240321,1755622277411,-1462.46,0.00024109,2]
[380240322,1755622277421,-958.15,0.00024109,2]
[380240323,1755622277430,-684.55,0.00024109,2]
[380240324,1755622277440,-480.0,0.00024109,2]
[380240325,1755622277449,-809.37,0.00024109,2]
[380240326,1755622277459,-822.15,0.00024109,2]
[380240327,1755622277469,-1876.86,0.00024109,2]
[380240328,1755622277478,-485.73,0.00024109,2]
[380240329,1755622277489,-594.43,0.00024109,2]
[380240330,1755622277499,-2779.77,0.00024109,2]
[380240331,1755622277508,-611.1,0.00024109,2]
[380240332,1755622277518,-635.9,0.00024109,2]
[380240333,1755622277527,-480.0,0.00024109,2]
[380240334,1755622277537,-2697.84,0.00024109,2]
[380240335,1755622277546,-2946.82,0.00024109,2]
[380240336,1755622277556,-810.05,0.00024109,2]
[380240337,1755622277565,-1509.61,0.00024109,2]
[380240338,1755622277574,-1082.62,0.00024109,2]
[380240339,1755622277584,-2422.45,0.00024109,2]
[380240340,1755622277594,-516.51,0.00024109,2]
[380240341,1755622277604,-480.0,0.00024109,2]
[380240342,1755622277613,-2620.55,0.00024109,2]
[380240343,1755622277623,-604.32,0.00024109,2]
[380240344,1755622277632,-846.8,0.00024109,2]
[380240345,1755622277642,-663.09,0.00024109,2]
[380240346,1755622277652,-519.86,0.00024109,2]
[380240347,1755622277661,-2167.0,0.00024109,2]
[380240348,1755622277671,-705.07,0.00024109,2]
[380240349,1755622277680,-7328.71,0.00024109,2]
[380240350,1755622277690,-538.37,0.00024109,2]
[380240351,1755622277699,-590.33,0.00024109,2]
[380240352,1755622277709,-158.49559511,0.0002411,2]
[380240353,1755622277718,-160.91745435,0.0002411,2]
[380240354,1755622277727,-876.0,0.0002411,2]
[380240355,1755622277738,-3000.0,0.00024143,2]
[380240356,1755622277748,-3000.0,0.00024143,2]
[380240357,1755622278039,-3000.0,0.00024143,2]
[380240358,1755622278056,-3145.85746645,0.00024143,2]
[380240359,1755622278068,-3000.0,0.00024143,2]
[380240360,1755622278077,-206.0,0.0002415,2]
[380240361,1755622278087,-450.0,0.00024156,2]
[380240362,1755622278096,-179.0,0.00024164,7]
[380240363,1755622278106,-217.0,0.00024269,2]
[380240364,1755622278117,-165.09383539,0.000243,7]
[380240365,1755622278131,-845.39616461,0.000243,7]
[380240366,1755622278140,-44805.59,0.000243,2]
[380240367,1755622278149,-960.0,0.00024302,2]
[380240368,1755622278160,-217.0,0.0002433,2]
[380240369,1755622278169,-217.0,0.00024342,2]
[380240370,1755622278180,-155.44,0.00024353,7]
[380240371,1755622278189,-1073.48,0.00024353,7]
[380240372,1755622278198,-4500.0,0.00024356,2]
[380240373,1755622278208,-4500.0,0.00024356,2]
[380240374,1755622278217,-4500.0,0.00024356,2]
[380240375,1755622278226,-6998.28,0.00024383,2]
[380240376,1755622278238,-966.56,0.00024383,2]